bitfinex-derivatives/quotes_SOLF0:USTF0_20250311
["timestamp","ask_amount","ask_price","bid_price","bid_amount"]
[1741670006789,35.09846749,122.92,122.84,67.4229]
[1741670006984,35.09846749,122.92,122.84,59.28]
[1741670007194,35.09846749,122.95,122.84,59.28]
[1741670007396,6.089,122.96,122.84,94.37846749]
[1741670007690,41.18746749,122.96,122.88,8.1397]
[1741670007892,35.09846749,122.93,122.87,0.053441]
[1741670008197,35.09846749,122.93,122.86,8.1415]
[1741670008391,6.089,122.96,122.84,94.37846749]
[1741670008590,2.8884,122.96,122.84,94.37846749]
[1741670008790,0.05598315,122.91,122.89,8.19487325]
[1741670009187,274.7313,122.98,122.89,8.139]
[1741670009392,0.05150412,122.91,122.89,0.05359893]
[1741670009592,35.09846749,122.93,122.84,59.28]
[1741670009790,35.09846749,122.93,122.89,0.05446953]
[1741670010192,0.05916401,122.92,122.89,0.05446953]
[1741670010697,0.05916401,122.92,122.89,8.19346953]
[1741670010886,0.05916401,122.92,122.89,60.15446953]
[1741670011294,5.9113,122.98,122.92,8.1372]
[1741670011494,5.9113,122.98,122.9,6.2235]
[1741670011688,5.9113,122.98,122.92,8.1375]
[1741670012086,5.9113,122.98,122.9,6.2235]
[1741670012491,0.03682404,122.95,122.93,0.05592039]
[1741670012695,53.0483,123.0,122.93,0.05592039]
[1741670012891,50.0,123.0,122.96,8.1347]
[1741670013500,50.0,123.0,122.97,8.1342]
[1741670013692,50.0,123.0,122.94,61.5]
[1741670014092,50.0,123.0,122.97,0.05340156]
[1741670014292,35.09846749,123.03,122.97,0.05340156]
[1741670014695,35.09846749,123.03,122.94,61.5]
[1741670014894,268.64,123.08,122.99,0.06134755]
[1741670015097,35.09846749,123.09,122.99,0.06134755]
[1741670015390,35.09846749,123.06,122.94,61.5]
[1741670015603,35.09846749,123.06,122.96,2.9582]
[1741670015801,35.09846749,123.06,123.03,0.05256619]
[1741670016002,35.09846749,123.06,122.99,62.82]
[1741670016201,1.41454789,123.14,123.01,35.09846749]
[1741670016395,35.09846749,123.15,123.03,0.05730764]
[1741670016591,3.1387,123.16,123.04,35.09846749]
[1741670016900,35.09846749,123.18,123.02,62.76]
[1741670016901,35.09846749,123.18,123.11,8.125]
[1741670017091,6.2326,123.23,123.11,63.14]
[1741670017292,6.2326,123.23,123.13,8.1237]
[1741670017498,29.0,123.22,123.16,0.05650694]
[1741670018096,35.09846749,123.21,123.16,0.05650694]
[1741670018598,35.09846749,123.18,123.05,229.16486749]
[1741670018897,65.86,123.17,123.06,2.9306]
[1741670019197,35.09846749,123.16,123.06,2.9306]
[1741670019399,35.09846749,123.13,123.06,2.9306]
[1741670019597,35.09846749,123.13,123.05,3.0664]
[1741670019903,35.09846749,123.1,123.03,2.9306]
[1741670020603,6.0379,123.15,123.02,35.09846749]
[1741670020804,3.1063,123.15,123.03,70.3021]
[1741670021003,0.05353724,123.1,123.07,0.05942683]
[1741670021305,35.09846749,123.2,123.05,35.09846749]
[1741670021695,35.09846749,123.2,123.12,8.1237]
[1741670022002,35.09846749,123.2,123.08,102.37846749]
[1741670022311,29.0,123.22,123.11,35.09846749]
[1741670022498,29.0,123.22,123.13,0.05539477]
[1741670022806,29.0,123.22,123.14,35.09846749]
[1741670023002,29.0,123.22,123.11,303.41846749]
[1741670023305,8.1194,123.2,123.12,8.1243]
[1741670023497,35.09846749,123.19,123.09,73.4616]
[1741670023703,38.18886749,123.19,123.15,0.05319954]
[1741670024301,46.30876749,123.19,123.15,0.05319954]
[1741670024502,38.18886749,123.19,123.15,0.05319954]
[1741670024698,332.25846749,123.22,123.15,0.05319954]
[1741670024902,332.25846749,123.22,123.16,8.1215]
[1741670025204,332.25846749,123.22,123.09,108.30006749]
[1741670025407,8.1206,123.18,123.09,73.2016]
[1741670025596,35.09846749,123.19,123.09,73.2016]
[1741670025803,332.25846749,123.22,123.12,0.06157386]
[1741670025998,29.0,123.22,123.12,0.06157386]
[1741670026200,29.0,123.22,123.14,35.09846749]
[1741670026404,37.1179,123.22,123.16,0.05741852]
[1741670026601,29.0,123.22,123.16,0.05741852]
[1741670027005,35.09846749,123.18,123.16,0.05741852]
[1741670027308,35.09846749,123.18,123.09,3.1914]
[1741670027503,2.9759,123.17,123.09,3.1914]
[1741670028002,38.07436749,123.17,123.09,3.1914]
[1741670028205,38.07436749,123.17,123.06,2.939]
[1741670028411,35.09846749,123.14,123.04,3.0612]
[1741670028605,0.05402996,123.13,123.1,0.06174758]
[1741670029108,8.1223,123.16,123.1,0.06174758]
[1741670029305,0.0534462,123.13,123.1,0.06174758]
[1741670030709,0.0534462,123.13,123.1,3.25494758]
[1741670030903,311.29816749,123.2,123.1,3.25494758]
[1741670031106,3.1569,123.25,123.15,35.09846749]
[1741670031306,2.9051,123.26,123.16,66.92]
[1741670031504,2.9051,123.26,123.16,70.1132]
[1741670032002,271.0018,123.3,123.18,35.09846749]
[1741670032003,8.06018645,123.22,123.18,35.09846749]
[1741670032206,2.9418,123.3,123.18,35.09846749]
[1741670032207,2.9051,123.3,123.18,35.15667507]
[1741670032408,2.9051,123.3,123.19,3.1111]
[1741670032909,335.48,123.41,123.23,0.05749164]
[1741670033208,35.09846749,123.32,123.23,0.05749164]
[1741670033508,35.09846749,123.29,123.26,0.05453842]
[1741670033703,2.926,123.31,123.26,0.05453842]
[1741670033899,2.926,123.31,123.21,35.09846749]
[1741670034100,35.09846749,123.34,123.27,0.06198084]
[1741670035112,8.1117,123.32,123.27,0.06198084]
[1741670035298,35.09846749,123.34,123.27,0.06198084]
[1741670035500,35.09846749,123.37,123.27,0.06198084]
[1741670035812,35.09846749,123.37,123.26,67.38]
[1741670036109,8.1117,123.32,123.31,0.06244331]
[1741670036311,35.09846749,123.37,123.31,0.06244331]
[1741670036611,35.09846749,123.34,123.31,0.06244331]
[1741670036813,35.09846749,123.34,123.31,4.331e-05]
[1741670037108,101.99846749,123.34,123.22,334.76]
[1741670037301,35.09846749,123.3,123.22,334.76]
[1741670037502,35.09846749,123.3,123.22,66.9]
[1741670037707,8.1159,123.25,123.19,3.1111]
[1741670037916,35.09846749,123.27,123.18,69.9158]
[1741670038110,8.1178,123.22,123.21,0.05856086]
[1741670038911,0.05245501,123.23,123.16,66.72]
[1741670039109,2.9086,123.22,123.11,3.1102]
[1741670039808,2.9086,123.22,123.13,35.09846749]
[1741670040002,2.9086,123.22,123.11,3.1102]
[1741670040207,2.9086,123.22,123.16,0.0564521]
[1741670040208,0.05303252,123.19,123.16,0.0564521]
[1741670040910,8.1211,123.17,123.16,0.0564521]
[1741670041113,0.05303252,123.19,123.16,2.4964521]
[1741670041310,0.05303252,123.19,123.16,0.0564521]
[1741670041511,2.9086,123.27,123.17,8.1211]
[1741670041512,8.1155,123.26,123.17,8.1211]
[1741670041717,2.9086,123.27,123.17,8.1211]
[1741670041918,2.9086,123.27,123.15,41.14406749]
[1741670042114,11.0237,123.27,123.19,8.1193]
[1741670042314,267.82,123.35,123.21,35.09846749]
[1741670042519,3.053,123.32,123.22,69.66]
[1741670042716,0.0594752,123.29,123.26,0.05180552]
[1741670043126,35.09846749,123.28,123.19,69.5]
[1741670044021,35.09846749,123.25,123.16,69.64]
[1741670044224,3.1805,123.27,123.16,69.64]
[1741670044422,0.00300627,123.22,123.21,8.1179]
[1741670044616,0.00300627,123.22,123.19,35.15275524]
[1741670044822,8.1164,123.25,123.17,8.1206]
[1741670045023,35.09846749,123.28,123.16,69.64]
[1741670045525,35.09846749,123.25,123.15,6.0456]
[1741670045731,0.06132411,123.23,123.21,0.05133044]
[1741670046318,0.06132411,123.23,123.13,35.09846749]
[1741670046521,35.09846749,123.18,123.07,6.1457]
[1741670047421,0.06158208,123.14,123.11,0.05860686]
[1741670049026,35.09846749,123.13,123.03,69.26]
[1741670049226,25.33,123.17,123.11,35.09846749]
[1741670049427,25.33,123.17,123.12,11.34]
[1741670049623,33.4512,123.17,123.12,11.34]
[1741670050129,25.33,123.17,123.12,11.34]
[1741670050329,0.05856045,123.16,123.13,0.05381585]
[1741670051328,0.05856045,123.16,123.15,35.09846749]
[1741670051532,0.05856045,123.16,123.15,46.15846749]
[1741670051931,0.05856045,123.16,123.15,11.06]
[1741670052129,0.05856045,123.16,123.13,0.05381585]
[1741670054437,8.1231,123.14,123.13,0.05381585]
[1741670055030,8.18046045,123.16,123.13,0.05381585]
[1741670055325,0.05856045,123.16,123.13,0.05381585]
[1741670057533,0.05856045,123.16,123.13,1.585e-05]
[1741670058132,8.1225,123.15,123.13,1.585e-05]
[1741670058434,0.05856045,123.16,123.13,1.585e-05]
[1741670058634,0.05856045,123.16,123.13,8.12351585]
[1741670058936,0.05856045,123.16,123.13,1.585e-05]
[1741670060536,25.33,123.17,123.13,37.53848334]
[1741670060737,3.1183,123.17,123.16,35.09846749]
[1741670060939,3.1183,123.17,123.16,51.98016749]
[1741670061536,3.0746,123.24,123.18,8.1203]
[1741670061735,0.05302828,123.18,123.16,43.85846749]
[1741670061936,3.0746,123.24,123.16,43.85846749]
[1741670062130,3.0746,123.24,123.16,43.91602008]
[1741670062334,0.05787443,123.18,123.16,43.85846749]
[1741670062542,3.0746,123.24,123.19,0.05177231]
[1741670062933,0.05263278,123.23,123.16,8.76]
[1741670063136,0.05263278,123.23,123.2,0.05920102]
[1741670063941,35.09846749,123.22,123.12,29.15739143]
[1741670064342,35.09846749,123.22,123.14,8.1229]
[1741670065139,35.09846749,123.22,123.12,29.15739143]
[1741670065537,35.09846749,123.22,123.16,0.05273238]
[1741670065841,0.0613068,123.18,123.16,0.05273238]
[1741670066745,0.0613068,123.18,123.16,8.17433238]
[1741670066944,0.0613068,123.18,123.16,0.05273238]
[1741670067941,8.1824068,123.18,123.16,0.05273238]
[1741670068536,0.0613068,123.18,123.16,0.05273238]
[1741670069141,0.0613068,123.18,123.08,1.68076845]
[1741670069444,35.09846749,123.15,123.06,138.59627993]
[1741670069742,8.1219,123.16,123.11,8.1247]
[1741670070144,8.1219,123.16,123.06,173.69474742]
[1741670070145,8.1231,123.14,123.09,8.1259]
[1741670070337,41.25406749,123.17,123.12,0.05306517]
[1741670070641,8.1233,123.14,123.08,8.1265]
[1741670070843,0.05330339,123.16,123.13,0.05191247]
[1741670071047,41.25406749,123.17,123.08,8.1265]
[1741670071342,0.05580901,123.16,123.13,0.05571165]
[1741670071740,35.09846749,123.14,123.06,138.59627993]
[1741670072140,35.09846749,123.11,123.09,0.05281564]
[1741670072342,35.16078753,123.11,123.06,138.59627993]
[1741670072542,35.16078753,123.11,123.03,199.1298]
[1741670072743,35.16078753,123.11,123.03,191.0]
[1741670072937,3.0994,123.1,123.03,191.0]
[1741670073138,3.0994,123.1,123.02,86.86126334]
[1741670073341,8.1291,123.05,123.02,86.86126334]
[1741670073645,0.0526082,123.07,123.05,0.05894433]
[1741670073838,0.0526082,123.07,123.01,31.00798349]
[1741670074243,0.0526082,123.07,122.99,215.79319727]
[1741670074647,3.0894,123.09,122.99,215.79319727]
[1741670075143,0.06125421,123.05,123.03,0.05727706]
[1741670077147,0.06125421,123.05,123.02,35.09846749]
[1741670077343,35.09846749,123.13,123.02,35.09846749]
[1741670077642,35.09846749,123.13,122.99,35.09846749]
[1741670078144,35.09846749,123.13,123.0,0.2264]
[1741670078542,35.09846749,123.13,123.02,35.09846749]
[1741670078742,0.05365771,123.08,123.05,0.05978819]
[1741670079247,0.05563084,123.08,123.05,0.06200364]
[1741670079644,0.05563084,123.08,123.07,8.1277]
[1741670079849,9.3231,123.15,123.05,0.06200364]
[1741670080143,9.3231,123.15,123.05,35.09846749]
[1741670081050,9.3231,123.15,123.09,0.05245052]
[1741670081350,0.0524976,123.11,123.09,0.05245052]
[1741670081549,0.0524976,123.11,123.1,8.1257]
[1741670082451,0.0524976,123.11,123.09,0.05245052]
[1741670084254,35.09846749,123.1,123.01,87.22505376]
[1741670084549,35.09846749,123.1,123.04,8.1291]
[1741670084849,35.09846749,123.1,123.03,8.1299]
[1741670085054,35.09846749,123.1,123.01,87.22505376]
[1741670085554,0.05520495,123.07,123.04,0.06192556]
[1741670086645,0.05520495,123.07,123.04,8.19132556]
[1741670086848,0.05520495,123.07,123.04,0.06192556]
[1741670087246,0.05520495,123.07,123.05,8.1284]
[1741670087451,0.05520495,123.07,123.04,0.06192556]
[1741670088349,0.05520495,123.07,123.05,8.1286]
[1741670088549,0.05520495,123.07,123.04,0.06192556]
[1741670089053,0.05520495,123.07,123.05,8.129]
[1741670089353,0.05520495,123.07,123.04,0.06192556]
[1741670089853,8.1287,123.06,123.04,0.06192556]
[1741670090051,6.34060495,123.07,123.04,0.06192556]
[1741670090255,8.1303,123.04,122.96,87.45325376]
[1741670090454,8.1303,123.04,122.97,71.86]
[1741670090646,6.2854,123.07,122.97,71.86]
[1741670091251,8.1299,123.04,122.97,71.86]
[1741670091555,0.06102809,123.03,122.96,87.22505376]
[1741670092152,0.06102809,123.03,123.01,8.1312]
[1741670092451,0.06102809,123.03,122.96,87.22505376]
[1741670092656,0.06102809,123.03,123.01,0.05707988]
[1741670092958,0.06102809,123.03,123.0,8.1323]
[1741670093150,0.06102809,123.03,123.01,0.05927204]
[1741670093552,35.09846749,123.06,122.97,71.38]
[1741670093859,35.15504355,123.03,122.95,71.2]
[1741670094059,8.1324,123.0,122.95,71.16]
[1741670094259,35.09846749,123.03,122.95,79.2952]
[1741670094551,35.09846749,123.03,122.95,71.16]
[1741670094755,35.09846749,123.03,122.94,117.56095797]
[1741670094948,35.09846749,123.03,122.96,8.1345]
[1741670095146,0.05547654,123.0,122.97,0.05825265]
[1741670098553,8.18807654,123.0,122.97,0.05825265]
[1741670098857,0.05547654,123.0,122.97,0.05825265]
[1741670100260,0.05547654,123.0,122.97,8.19215265]
[1741670100557,0.05547654,123.0,122.97,0.05825265]
[1741670101758,35.09846749,122.98,122.88,268.08]
[1741670101962,6.2581,123.0,122.89,69.18]
[1741670102463,8.1331,122.99,122.94,8.1359]
[1741670102655,8.1331,122.99,122.89,69.18]
[1741670102854,6.2581,123.0,122.89,69.18]
[1741670103050,0.05545776,122.98,122.95,0.06052838]
[1741670103255,0.05545776,122.98,122.95,68.84052838]
[1741670104156,5.9208,123.05,122.95,68.84052838]
[1741670104355,5.9208,123.05,122.95,68.78]
[1741670105157,8.1299,123.04,123.0,8.1319]
[1741670105353,0.0571607,123.01,122.99,0.06107369]
[1741670105657,0.0571607,123.01,123.0,8.1323]
[1741670105859,24.73,123.08,122.99,35.15954118]
[1741670106360,24.73,123.08,123.07,8.1277]
[1741670106763,24.61816246,123.08,123.07,8.1277]
[1741670107063,24.61816246,123.08,123.06,70.16]
[1741670107264,24.61816246,123.08,123.06,70.21897662]
[1741670107857,24.61816246,123.08,123.07,8.1277]
[1741670109068,6.09e-05,123.09,123.08,8.127]
[1741670109563,229.09846749,123.27,123.08,8.127]
[1741670109564,44.37686749,123.21,123.08,37.53846749]
[1741670109867,44.37686749,123.21,123.08,35.09846749]
[1741670110167,8.1196,123.2,123.14,8.1226]
[1741670110363,35.09846749,123.21,123.14,69.2]
[1741670110764,0.05286492,123.19,123.16,0.05300303]
[1741670111455,8.17276492,123.19,123.16,0.05300303]
[1741670111663,0.05286492,123.19,123.16,0.05300303]
[1741670112057,8.17286492,123.19,123.16,0.05300303]
[1741670112661,0.05286492,123.19,123.16,0.05300303]
[1741670113263,8.1211,123.17,123.16,0.05300303]
[1741670113470,35.15133241,123.19,123.16,0.05300303]
[1741670113769,38.20703241,123.19,123.16,0.05300303]
[1741670114068,38.20703241,123.19,123.1,68.56]
[1741670114267,38.15416749,123.19,123.1,68.56]
[1741670114663,8.1212,123.17,123.12,8.1244]
[1741670114864,38.15416749,123.19,123.12,8.1244]
[1741670115170,0.05697651,123.17,123.14,0.05459352]
[1741670115868,8.1224,123.15,123.14,0.05459352]
[1741670116064,35.09846749,123.16,123.09,268.12]
[1741670116272,35.09846749,123.14,123.06,67.96]
[1741670116467,194.0,123.25,123.12,35.09846749]
[1741670116678,8.1179,123.22,123.13,69.64]
[1741670116974,5.9177,123.24,123.18,8.1199]
[1741670117169,0.05423592,123.19,123.16,0.05267075]
[1741670117370,5.9177,123.24,123.13,69.9398]
[1741670117568,5.9177,123.24,123.14,1.43035468]
[1741670117766,14.0342,123.24,123.13,69.9398]
[1741670117965,5.9177,123.24,123.13,69.9398]
[1741670118572,2.9661,123.26,123.15,35.09846749]
[1741670118770,0.05747234,123.2,123.17,0.05199466]
[1741670118974,8.1153,123.26,123.17,0.05199466]
[1741670119171,35.09846749,123.27,123.16,1.42892167]
[1741670119470,35.09846749,123.27,123.17,1.42854564]
[1741670119669,35.09846749,123.27,123.15,35.09846749]
[1741670119871,35.09846749,123.27,123.16,1.42856643]
[1741670120167,35.09846749,123.27,123.22,8.1173]
[1741670120364,0.05295772,123.23,123.2,0.05798644]
[1741670120572,8.1163,123.25,123.19,69.36]
[1741670120769,0.06199012,123.23,123.2,0.06001464]
[1741670121474,35.09846749,123.44,123.22,35.09846749]
[1741670121675,3.0783,123.41,123.34,8.1093]
[1741670121976,3.0783,123.41,123.35,69.08]
[1741670122567,0.06164595,123.39,123.37,0.05229448]
[1741670123872,89.67500354,123.48,123.4,8.1057]
[1741670124078,98.53000354,123.48,123.4,68.46]
[1741670124371,89.67500354,123.48,123.41,34.7453367]
[1741670124580,34.7453367,123.53,123.41,34.7453367]
[1741670125076,0.06096808,123.48,123.46,0.05540453]
[1741670125470,34.7453367,123.53,123.46,0.05540453]
[1741670125672,0.05357767,123.48,123.46,0.05540453]
[1741670125968,273.8409,123.54,123.41,34.7453367]
[1741670126279,0.0567034,123.48,123.46,0.05462969]
[1741670126678,34.7453367,123.52,123.41,34.7453367]
[1741670126875,0.05834841,123.48,123.46,0.05690746]
[1741670127370,0.06180555,123.48,123.46,68.77170552]
[1741670127567,402.21250532,123.66,123.47,34.7453367]
[1741670127772,34.7453367,123.61,123.47,34.7453367]
[1741670127974,34.7453367,123.61,123.5,34.7453367]
[1741670128178,30.5732,123.63,123.5,34.7453367]
[1741670128373,34.7453367,123.61,123.48,267.7]
[1741670128675,34.7453367,123.58,123.46,68.72]
[1741670128867,34.7453367,123.54,123.53,0.05456675]
[1741670129067,8.0977,123.53,123.46,68.72]
[1741670129377,34.7453367,123.54,123.44,68.86]
[1741670129573,34.7453367,123.51,123.44,68.86]
[1741670129772,40.6032367,123.55,123.44,68.86]
[1741670130177,0.05451365,123.51,123.48,0.05702501]
[1741670132081,8.15371365,123.51,123.48,0.05702501]
[1741670132383,0.05451365,123.51,123.48,0.05702501]
[1741670132570,0.05451365,123.51,123.44,68.86]
[1741670132571,34.7453367,123.49,123.44,68.86]
[1741670132776,34.7453367,123.49,123.4,67.96]
[1741670133174,8.1012,123.48,123.4,67.96]
[1741670133380,34.7453367,123.51,123.4,67.96]
[1741670133575,34.7453367,123.48,123.4,67.96]
[1741670133771,0.05475238,123.47,123.44,0.06210489]
[1741670133975,34.7453367,123.51,123.4,67.96]
[1741670134171,0.06140966,123.45,123.42,0.05776716]
[1741670134376,34.7453367,123.48,123.4,67.96]
[1741670134677,0.05295264,123.45,123.42,0.0565189]
[1741670134873,0.05295264,123.45,123.43,34.7453367]
[1741670135077,2.8798,123.53,123.43,34.7453367]
[1741670135485,34.7453367,123.52,123.4,102.7053367]
[1741670135675,2.8798,123.53,123.4,102.7053367]
[1741670136087,8.1008,123.48,123.4,102.7053367]
[1741670136286,0.05384309,123.48,123.45,0.05917574]
[1741670136584,34.7453367,123.5,123.45,0.05917574]
[1741670136787,8.1018,123.47,123.45,0.05917574]
[1741670137088,0.05680546,123.48,123.45,0.05917574]
[1741670138289,2.8651,123.55,123.45,0.05917574]
[1741670138691,2.8651,123.55,123.44,267.32]
[1741670139080,10.9617,123.55,123.44,267.32]
[1741670139287,34.7453367,123.58,123.46,34.7453367]
[1741670139505,0.03134663,123.51,123.48,0.06163522]
[1741670139689,5.9793,123.6,123.5,8.0987]
[1741670139895,5.9793,123.6,123.47,69.52]
[1741670140093,2.9387,123.61,123.49,34.7453367]
[1741670140393,21.6,123.63,123.49,225.7453367]
[1741670140586,21.6,123.63,123.52,8.098]
[1741670140791,8.0929,123.6,123.53,69.42]
[1741670140991,0.05575222,123.57,123.54,0.06072544]
[1741670141394,0.05575222,123.57,123.53,69.42]
[1741670141593,0.05575222,123.57,123.54,0.06078226]
[1741670142294,34.7453367,123.56,123.54,0.06078226]
[1741670142893,8.0961,123.55,123.54,0.06078226]
[1741670143196,91.18,123.63,123.54,665.7453367]
[1741670143197,21.6,123.63,123.54,665.7453367]
[1741670143494,21.53921774,123.63,123.57,34.7453367]
[1741670143788,21.53921774,123.63,123.6,8.0925]
[1741670143994,21.53921774,123.63,123.61,69.62]
[1741670144290,21.60128394,123.63,123.61,69.67655352]
[1741670144994,21.60128394,123.63,123.61,0.05655352]
[1741670145190,34.7453367,123.62,123.52,69.42]
[1741670145389,8.0963,123.55,123.52,69.42]
[1741670145586,34.7453367,123.59,123.52,69.42]
[1741670145886,34.7453367,123.59,123.49,192.41331949]
[1741670145887,8.0981,123.52,123.49,192.41331949]
[1741670146092,34.7453367,123.56,123.49,1.41331949]
[1741670146288,0.05711221,123.52,123.49,1.46486593]
[1741670148693,2.9198,123.61,123.5,34.7453367]
[1741670149596,11.0121,123.61,123.5,34.7453367]
[1741670149899,3.0772,123.62,123.5,34.7453367]
[1741670150090,0.05837325,123.57,123.54,0.05386667]
[1741670150591,0.05837325,123.57,123.49,1.41331949]
[1741670150795,0.05837325,123.57,123.54,0.06226075]
[1741670150996,34.7453367,123.6,123.54,0.06226075]
[1741670151297,0.05362248,123.57,123.54,0.06226075]
[1741670153389,8.14892248,123.57,123.54,0.06226075]
[1741670153587,42.89425918,123.57,123.54,0.06226075]
[1741670153892,34.79895918,123.57,123.49,1.41331949]
[1741670154100,34.7453367,123.54,123.49,1.41331949]
[1741670154293,34.7453367,123.51,123.49,1.41331949]
[1741670154498,42.8441367,123.51,123.49,1.41331949]
[1741670154700,34.7453367,123.51,123.42,69.82]
[1741670154900,2.96,123.53,123.43,34.7453367]
[1741670155200,0.0542175,123.48,123.45,0.0593402]
[1741670155699,2.96,123.53,123.42,69.82]
[1741670155901,0.06190811,123.48,123.45,0.06212604]
[1741670156194,0.06190811,123.48,123.46,8.1016]
[1741670156397,0.06190811,123.48,123.45,0.06081162]
[1741670158403,8.102,123.46,123.45,0.06081162]
[1741670158699,0.06190811,123.48,123.45,0.06081162]
[1741670158889,0.06190811,123.48,123.47,8.1014]
[1741670159297,0.06190811,123.48,123.45,0.06081162]
[1741670160100,0.06190811,123.48,123.45,8.16321162]
[1741670160302,0.06190811,123.48,123.45,0.06081162]
[1741670161400,0.06190811,123.48,123.43,69.46]
[1741670161899,5.8678,123.53,123.45,34.7453367]
[1741670162098,3.1281,123.54,123.45,34.7453367]
[1741670162297,5.9819,123.59,123.45,34.7453367]
[1741670162496,5.9819,123.59,123.45,225.7453367]
[1741670162896,34.7453367,123.54,123.45,191.0]
[1741670163100,2.8652,123.53,123.43,69.46]
[1741670163299,2.92375029,123.53,123.51,0.05842624]
[1741670163504,2.8652,123.53,123.43,69.46]
[1741670163695,2.92130666,123.53,123.51,0.06209567]
[1741670164003,2.8652,123.53,123.43,69.46]
[1741670164204,34.7453367,123.51,123.43,69.46]
[1741670164397,2.8652,123.53,123.43,69.46]
[1741670164903,3.1167,123.52,123.44,87.22505376]
[1741670165508,0.05701139,123.49,123.47,0.05183079]
[1741670165902,0.05701139,123.49,123.48,8.1006]
[1741670166097,0.05701139,123.49,123.47,0.05183079]
[1741670166098,2.89,123.54,123.47,0.05183079]
[1741670166400,2.89,123.54,123.51,8.0982]
[1741670166704,3.0447,123.59,123.52,71.1]
[1741670166904,34.7453367,123.63,123.53,71.12]
[1741670167202,194.0,123.71,123.53,105.8653367]
[1741670167409,0.05225929,123.58,123.56,0.05325517]
[1741670167803,34.79759599,123.58,123.56,0.05325517]
[1741670168009,8.095,123.57,123.52,8.0979]
[1741670168201,0.05225929,123.58,123.5,105.6853367]
[1741670168402,8.7894,123.6,123.5,105.6853367]
[1741670168606,34.7453367,123.59,123.5,70.94]
[1741670169103,34.7453367,123.59,123.53,8.0968]
[1741670169406,0.05797128,123.56,123.53,0.05111778]
[1741670169606,0.05797128,123.56,123.54,8.0962]
[1741670169805,0.05797128,123.56,123.53,0.05111778]
[1741670171302,7.128e-05,123.56,123.55,8.0961]
[1741670171811,7.128e-05,123.56,123.54,8.0963]
[1741670172005,7.128e-05,123.56,123.53,0.05111778]
[1741670175616,34.7453367,123.55,123.48,374.88329998]
[1741670175810,34.7453367,123.55,123.48,107.74329998]
[1741670175811,3.1196,123.54,123.48,107.74329998]
[1741670176011,34.7453367,123.52,123.48,107.74329998]
[1741670176715,34.7453367,123.53,123.48,107.74329998]
[1741670177021,0.05920392,123.51,123.49,0.05611629]
[1741670178518,8.15840392,123.51,123.49,0.05611629]
[1741670179313,0.05920392,123.51,123.49,0.05611629]
[1741670179520,34.7453367,123.5,123.44,8.1029]
[1741670179708,34.7453367,123.5,123.43,87.22505376]
[1741670180726,0.06214054,123.48,123.45,0.0615477]
[1741670181816,8.1014,123.47,123.45,0.0615477]
[1741670182019,3.0868,123.47,123.45,0.0615477]
[1741670182923,8.102,123.46,123.45,0.0615477]
[1741670183122,3.0868,123.47,123.41,8.1047]
[1741670183326,3.0868,123.47,123.38,87.22505376]
[1741670183522,2.8509,123.52,123.43,34.7453367]
[1741670183718,3.0868,123.54,123.43,301.8853367]
[1741670184020,34.7453367,123.52,123.39,1.62087689]
[1741670184218,0.05370876,123.5,123.47,0.05388189]
[1741670184618,34.7453367,123.49,123.39,1.62087689]
[1741670184819,37.7561367,123.49,123.39,1.62087689]
[1741670185626,37.7561367,123.49,123.39,9.72707689]
[1741670186027,8.1033,123.44,123.43,0.06228109]
[1741670186229,0.05515542,123.45,123.39,1.62087689]
[1741670186529,8.1045,123.43,123.34,226.0154367]
[1741670186723,34.80049212,123.45,123.34,226.0154367]
[1741670186925,2.9409,123.47,123.37,34.7453367]
[1741670187323,0.05429226,123.43,123.37,34.7453367]
[1741670187524,0.05429226,123.43,123.41,0.05702427]
[1741670188126,8.15889226,123.43,123.41,0.05702427]
[1741670188331,0.05429226,123.43,123.41,0.05702427]
[1741670188832,8.1046,123.42,123.41,0.05702427]
[1741670189026,0.05429226,123.43,123.41,0.05702427]
[1741670189635,0.05429226,123.43,123.33,87.22505376]
[1741670189824,34.7453367,123.44,123.33,87.22505376]
[1741670190024,8.1055,123.41,123.36,8.1084]
[1741670190428,34.7453367,123.44,123.36,8.1084]
[1741670190631,8.105,123.42,123.37,8.1075]
[1741670190839,0.05941634,123.41,123.39,0.05315696]
[1741670191032,34.7453367,123.44,123.32,1.41024862]
[1741670191337,0.05515138,123.41,123.39,0.055798]
[1741670192230,5.138e-05,123.41,123.39,2.495798]
[1741670192431,3.0871,123.5,123.39,2.495798]